bitfinex/quotes_BTCUSD_20230117
["timestamp","ask_amount","ask_price","bid_price","bid_amount"]
[1673994852193,0.09113246,21303.0,21302.0,1.05123324]
[1673994852443,0.091,21303.0,21302.0,0.938864]
[1673994856357,0.091,21303.0,21302.0,0.469439]
[1673994857131,0.091,21303.0,21302.0,0.459439]
[1673994858005,0.411982,21303.0,21302.0,0.459439]
[1673994858475,0.091,21303.0,21302.0,0.459439]
[1673994858980,0.411982,21303.0,21302.0,0.459439]
[1673994859251,0.091,21303.0,21302.0,0.459439]
[1673994861344,0.411982,21303.0,21302.0,0.459439]
[1673994861914,0.091,21303.0,21302.0,0.459439]
[1673994862434,0.411982,21303.0,21301.0,0.59136744]
[1673994862926,0.091,21303.0,21301.0,0.59136744]
[1673994863235,0.320982,21302.0,21301.0,0.59136744]
[1673994863444,0.85538789,21304.0,21301.0,0.59136744]
[1673994863705,0.09,21303.0,21301.0,0.59136744]
[1673994864211,0.320982,21302.0,21301.0,0.59136744]
[1673994864519,0.09,21303.0,21301.0,0.4789982]
[1673994865267,0.320982,21302.0,21301.0,0.0095582]
[1673994865795,0.09,21303.0,21301.0,0.0095582]
[1673994866045,2.15663369,21304.0,21301.0,0.0095582]
[1673994866336,0.038,21302.0,21301.0,0.0095582]
[1673994866568,0.358982,21302.0,21301.0,0.0095582]
[1673994867157,0.320982,21302.0,21301.0,0.0095582]
[1673994867636,0.09,21303.0,21301.0,0.0095582]
[1673994868194,0.320982,21302.0,21301.0,0.0095582]
[1673994868456,0.091,21302.0,21301.0,0.0095582]
[1673994868720,1.70450191,21304.0,21301.0,0.0095582]
[1673994868991,0.411982,21303.0,21301.0,0.0095582]
[1673994869241,0.320982,21302.0,21301.0,0.0095582]
[1673994869497,0.411982,21302.0,21301.0,0.0095582]
[1673994869774,0.320982,21302.0,21301.0,0.0095582]
[1673994870825,0.469418,21303.0,21301.0,0.0095582]
[1673994871336,0.320982,21302.0,21301.0,0.0095582]
[1673994871602,0.411982,21302.0,21301.0,0.0095582]
[1673994871875,0.320982,21302.0,21301.0,0.0095582]
[1673994872419,0.320982,21302.0,21300.0,0.34587699]
[1673994872627,0.320982,21301.0,21300.0,0.34587699]
[1673994873434,1.05978634,21303.0,21300.0,0.23350775]
[1673994873703,0.70445666,21302.0,21299.0,0.76289919]
[1673994873951,0.66135034,21301.0,21299.0,0.01243894]
[1673994874240,0.790465,21300.0,21299.0,0.01243894]
[1673994874482,1.60031634,21300.0,21299.0,0.01243894]
[1673994875779,2.31554175,21300.0,21299.0,0.01243894]
[1673994876018,1.6914488,21300.0,21299.0,0.01243894]
[1673994876573,2.12454007,21300.0,21299.0,0.01243894]
[1673994877120,3.90330706,21300.0,21299.0,0.01243894]
[1673994877379,3.90330706,21300.0,21297.0,0.01565547]
[1673994877380,0.25,21299.0,21297.0,0.01565547]
[1673994877845,0.25,21299.0,21297.0,5.547e-05]
[1673994877846,4.06486775,21298.0,21296.0,0.01375473]
[1673994877847,4.71031505,21298.0,21296.0,0.01375473]
[1673994878126,4.71031505,21298.0,21296.0,0.01105017]
[1673994878127,2.26773654,21297.0,21296.0,0.01105017]
[1673994878383,3.4351716,21297.0,21296.0,0.01105017]
[1673994878638,2.79017161,21297.0,21296.0,5.017e-05]
[1673994878948,0.25,21296.0,21293.0,0.0143149]
[1673994879166,1.60053634,21295.0,21293.0,0.0143149]
[1673994879428,0.320982,21294.0,21293.0,0.0143149]
[1673994879709,1.85058034,21294.0,21293.0,0.0143149]
[1673994880239,2.21695044,21294.0,21293.0,0.0143149]
[1673994880491,2.69415213,21294.0,21293.0,0.0143149]
[1673994880746,2.07778203,21294.0,21293.0,0.0143149]
[1673994881010,1.82941369,21294.0,21293.0,0.0143149]
[1673994881262,2.60682215,21294.0,21293.0,0.0143149]
[1673994882855,2.51482215,21294.0,21293.0,0.0143149]
[1673994883077,2.66593497,21294.0,21293.0,0.0143149]
[1673994883337,2.57393497,21294.0,21293.0,0.0143149]
[1673994883612,2.66593497,21294.0,21293.0,0.0143149]
[1673994888177,2.60695461,21294.0,21293.0,0.0143149]
[1673994888694,2.51495461,21294.0,21293.0,0.0143149]
[1673994888949,2.60695461,21294.0,21293.0,0.0143149]
[1673994890003,2.26658627,21294.0,21293.0,0.0143149]
[1673994890807,2.60695461,21294.0,21293.0,0.0143149]
[1673994891032,3.07290707,21294.0,21293.0,0.0143149]
[1673994892335,2.73253873,21294.0,21293.0,0.0143149]
[1673994893114,3.07290707,21294.0,21293.0,0.0143149]
[1673994899151,2.60695461,21294.0,21293.0,0.0143149]
[1673994899422,2.51495461,21294.0,21293.0,0.0143149]
[1673994900734,2.60695461,21294.0,21293.0,0.0143149]
[1673994901557,2.51495461,21294.0,21293.0,0.0143149]
[1673994901787,2.60695461,21294.0,21293.0,0.0143149]
[1673994902047,2.63587035,21294.0,21293.0,0.0143149]
[1673994902307,2.93587035,21294.0,21292.0,0.007821]
[1673994902616,1.43855203,21293.0,21292.0,0.007821]
[1673994902847,1.80051167,21293.0,21291.0,0.01375801]
[1673994903096,2.46559931,21292.0,21291.0,0.01375801]
[1673994903366,3.20632526,21292.0,21291.0,0.01375801]
[1673994903631,2.32787003,21292.0,21291.0,0.01375801]
[1673994904153,2.07950169,21292.0,21291.0,0.01375801]
[1673994904458,1.73750169,21292.0,21291.0,0.01375801]
[1673994904721,1.26784269,21292.0,21291.0,0.01375801]
[1673994905777,1.35984269,21292.0,21291.0,0.01375801]
[1673994906833,1.26784269,21292.0,21291.0,0.01375801]
[1673994907102,1.35984269,21292.0,21291.0,0.01375801]
[1673994907369,1.26784269,21292.0,21291.0,0.01375801]
[1673994907625,1.35984269,21292.0,21291.0,0.01375801]
[1673994907888,0.89018369,21292.0,21291.0,0.01375801]
[1673994909496,0.79818369,21292.0,21291.0,0.01375801]
[1673994909770,0.89018369,21292.0,21291.0,0.01375801]
[1673994910039,0.79818369,21292.0,21291.0,0.01375801]
[1673994910296,0.320982,21292.0,21291.0,0.09620217]
[1673994910760,0.77827867,21293.0,21291.0,0.01375801]
[1673994910761,0.52827867,21293.0,21291.0,0.01375801]
[1673994911347,0.320982,21292.0,21291.0,0.01375801]
[1673994911635,0.404982,21292.0,21291.0,0.01475801]
[1673994912921,0.320982,21292.0,21291.0,0.01375801]
[1673994913192,0.7149449,21292.0,21291.0,0.01475801]
[1673994913464,1.19214659,21292.0,21291.0,0.01375801]
[1673994913702,1.27614659,21292.0,21291.0,0.01475801]
[1673994913959,1.61664739,21292.0,21291.0,0.01475801]
[1673994914753,1.13231615,21292.0,21291.0,0.01475801]
[1673994916057,0.88218369,21292.0,21291.0,0.01475801]
[1673994916843,1.13231615,21292.0,21291.0,0.01475801]
[1673994917702,0.88231615,21292.0,21291.0,0.01475801]
[1673994917978,0.88218369,21292.0,21291.0,0.01475801]
[1673994921201,1.13218369,21292.0,21291.0,0.01475801]
[1673994921463,1.13231615,21292.0,21291.0,0.01475801]
[1673994922238,0.88231615,21292.0,21291.0,0.01475801]
[1673994923324,1.13231615,21292.0,21291.0,0.01475801]
[1673994923869,0.88231615,21292.0,21291.0,0.01475801]
[1673994924128,1.13231615,21292.0,21291.0,0.01475801]
[1673994924383,1.84042862,21292.0,21291.0,0.01475801]
[1673994924647,1.71393479,21292.0,21291.0,0.01475801]
[1673994925465,1.46393479,21292.0,21291.0,0.01475801]
[1673994925733,1.35197515,21292.0,21291.0,0.01475801]
[1673994925990,0.404982,21292.0,21291.0,0.01475801]
[1673994926237,0.084,21292.0,21291.0,0.01475801]
[1673994929170,0.084,21292.0,21291.0,0.33574001]
[1673994929683,0.084,21292.0,21291.0,0.01475801]
[1673994930205,0.404982,21292.0,21291.0,0.01475801]
[1673994930660,0.87477346,21292.0,21291.0,0.01475801]
[1673994930916,1.34443246,21292.0,21291.0,0.01475801]
[1673994931685,1.34443246,21292.0,21291.0,0.01465656]
[1673994933275,1.34443246,21292.0,21291.0,0.03575651]
[1673994934801,1.3443,21292.0,21291.0,0.03575651]
[1673994935074,1.023318,21292.0,21291.0,0.03575651]
[1673994935325,1.3443,21292.0,21291.0,0.03575651]
[1673994936379,0.553659,21292.0,21291.0,0.03575651]
[1673994937297,0.084,21292.0,21291.0,0.03575651]
[1673994938413,0.08413246,21292.0,21291.0,0.03575651]
[1673994938866,0.084,21292.0,21291.0,0.03575651]
[1673994939314,0.284,21292.0,21291.0,0.03575651]
[1673994940450,0.28413246,21292.0,21291.0,0.03575651]
[1673994940703,0.284,21292.0,21291.0,0.03575651]
[1673994943344,0.284,21292.0,21291.0,0.50543851]
[1673994943565,0.284,21292.0,21291.0,0.82642051]
[1673994943777,0.284,21292.0,21291.0,1.30460251]
[1673994943992,0.284,21292.0,21291.0,1.71697175]
[1673994944419,0.284,21292.0,21291.0,1.88557176]
[1673994945613,0.2,21292.0,21291.0,1.71597175]
[1673994945908,0.276,21292.0,21291.0,2.08557176]
[1673994946154,0.276,21292.0,21291.0,2.30221656]
[1673994946412,0.276,21292.0,21291.0,1.91697175]
[1673994947157,0.276,21292.0,21291.0,2.08557176]
[1673994947419,0.276,21292.0,21291.0,1.80460251]
[1673994948168,0.276,21292.0,21291.0,2.52492938]
[1673994948414,0.276,21292.0,21291.0,2.57391998]
[1673994948661,0.09238173,21292.0,21291.0,2.35043665]
[1673994949171,0.01638173,21292.0,21291.0,2.63054103]
[1673994949411,0.02038173,21292.0,21291.0,1.93560665]
[1673994949673,0.02038173,21292.0,21291.0,2.32906669]
[1673994949923,0.02038173,21292.0,21291.0,2.28203764]
[1673994950177,0.02038173,21292.0,21291.0,1.95453966]
[1673994950423,0.02038173,21292.0,21291.0,2.35737708]
[1673994951169,0.02038173,21292.0,21291.0,2.24499846]
[1673994951421,0.02038173,21292.0,21291.0,2.40427922]
[1673994951664,0.02038173,21292.0,21291.0,2.20152676]
[1673994951921,0.02038173,21292.0,21291.0,2.3483486]
[1673994952178,0.02038173,21292.0,21291.0,2.62945553]
[1673994952675,0.02038173,21292.0,21291.0,2.3483486]
[1673994952933,0.02038173,21292.0,21291.0,2.29195472]
[1673994953761,0.02038173,21292.0,21291.0,2.20144906]
[1673994954015,0.02038173,21292.0,21291.0,2.40422018]
[1673994955064,0.02038173,21292.0,21291.0,2.42224748]
[1673994955322,0.02038173,21292.0,21291.0,2.44232624]
[1673994955623,0.02038173,21292.0,21291.0,2.23955512]
[1673994956092,0.02038173,21292.0,21291.0,2.07105825]
[1673994956338,0.02038173,21292.0,21291.0,2.4422979]
[1673994956594,0.02038173,21292.0,21291.0,2.9119799]
[1673994957626,0.02027328,21292.0,21291.0,2.9119799]
[1673994958101,0.02027328,21292.0,21291.0,2.86495085]
[1673994958634,0.02027328,21292.0,21291.0,2.66220807]
[1673994958900,0.01983252,21292.0,21291.0,2.66220807]
[1673994959155,0.01983252,21292.0,21291.0,2.86443643]
[1673994959416,0.01983252,21292.0,21291.0,2.4937112]
[1673994959970,0.01983252,21292.0,21291.0,2.66220807]
[1673994960981,0.01983252,21292.0,21291.0,2.86439669]
[1673994962232,0.01983252,21292.0,21291.0,2.75206666]
[1673994962746,0.01983252,21292.0,21291.0,2.8642805]
[1673994964766,0.01983252,21292.0,21291.0,2.86428625]
[1673994965288,0.01983252,21292.0,21291.0,2.75206666]
[1673994965543,0.01983252,21292.0,21291.0,2.75205666]
[1673994966924,0.01983252,21292.0,21291.0,2.97694741]
[1673994967152,0.01983252,21292.0,21291.0,2.75205666]
[1673994968242,0.01983252,21292.0,21291.0,2.97694741]
[1673994968762,0.00808394,21292.0,21291.0,2.8642829]
[1673994969068,0.00808394,21292.0,21291.0,2.6294529]
[1673994969366,0.00808394,21292.0,21291.0,2.75205666]
[1673994970708,0.00808394,21292.0,21291.0,2.66209705]
[1673994970962,0.00808394,21292.0,21291.0,1.64654117]
[1673994971218,0.00808394,21292.0,21291.0,1.27656857]
[1673994972519,0.00808394,21292.0,21291.0,1.56806857]
[1673994973049,0.00808394,21292.0,21291.0,1.26806857]
[1673994973312,0.32906594,21292.0,21291.0,1.26806857]
[1673994974096,0.3291984,21292.0,21291.0,1.26806857]
[1673994974372,0.32906594,21292.0,21291.0,1.27656857]
[1673994974920,0.00808394,21292.0,21291.0,1.27656857]
[1673994975178,0.00808394,21292.0,21291.0,1.57656857]
[1673994975917,0.32906594,21292.0,21291.0,0.79838657]
[1673994976163,0.3291984,21292.0,21291.0,0.79838657]
[1673994976679,0.32906594,21292.0,21291.0,0.79838657]
[1673994976933,0.32906594,21292.0,21291.0,1.09838657]
[1673994977189,0.0082164,21292.0,21291.0,1.09838657]
[1673994977442,0.32906594,21292.0,21291.0,0.80688657]
[1673994978214,0.3291984,21292.0,21291.0,0.80688657]
[1673994978480,0.32906594,21292.0,21291.0,0.80688657]
[1673994981168,0.32906594,21292.0,21291.0,0.04957876]
[1673994981429,0.3291984,21292.0,21291.0,0.04957876]
[1673994982633,1.83859814,21292.0,21291.0,0.04957876]
[1673994982889,1.98849229,21292.0,21291.0,0.04957876]
[1673994983141,1.98849229,21292.0,21291.0,0.04107876]
[1673994983665,1.98449229,21292.0,21291.0,0.02007876]
[1673994983921,2.05749229,21292.0,21291.0,0.02207876]
[1673994984678,2.05749229,21292.0,21291.0,7.876e-05]
[1673994984933,2.05749229,21292.0,21290.0,0.01585183]
[1673994984934,0.2,21291.0,21290.0,0.01585183]
[1673994985202,1.6009661,21291.0,21290.0,0.01585183]
[1673994985969,1.6009661,21291.0,21288.0,0.01361928]
[1673994986246,1.17135841,21290.0,21289.0,0.0085]
[1673994986514,2.11076641,21290.0,21289.0,0.0085]
[1673994987515,1.77014631,21290.0,21289.0,0.0085]
[1673994987775,1.84414631,21290.0,21289.0,0.0105]
[1673994988276,2.18476641,21290.0,21289.0,0.002]
[1673994988789,2.18476641,21290.0,21288.0,0.01361928]
[1673994989047,0.320982,21289.0,21288.0,0.01361928]
[1673994989294,1.26056646,21289.0,21288.0,0.02211928]
[1673994990033,1.36356646,21289.0,21288.0,0.02211928]
[1673994990807,1.26056646,21289.0,21288.0,0.02211928]
[1673994991833,1.35056646,21289.0,21288.0,0.02211928]
[1673994995029,1.35056646,21289.0,21288.0,0.01361928]
[1673994995460,1.69118656,21289.0,21288.0,0.01361928]
[1673994995722,1.35056646,21289.0,21288.0,0.01361928]
[1673994995965,0.47646756,21288.0,21284.0,0.48770905]
[1673994996222,0.320982,21287.0,21285.0,0.0085]
[1673994996481,1.41599056,21288.0,21285.0,0.0035]
[1673994996745,0.47150097,21286.0,21284.0,0.48770905]
[1673994997777,0.47150097,21286.0,21285.0,0.001]
[1673994998032,0.47150097,21286.0,21284.0,0.48770905]
[1673994998285,0.48150097,21286.0,21284.0,0.48870905]
[1673994998538,0.47150097,21286.0,21284.0,0.48770905]
[1673994998824,0.47150097,21286.0,21285.0,0.0095]
[1673994998825,0.47750097,21286.0,21285.0,0.0095]
[1673994999047,0.47150097,21286.0,21285.0,0.0085]
[1673994999549,0.48150097,21286.0,21285.0,0.0035]
[1673994999805,0.48150097,21286.0,21284.0,0.95852905]
[1673995000063,0.48163343,21286.0,21284.0,0.95852905]
[1673995000877,0.47150097,21286.0,21284.0,0.95752905]
[1673995001122,0.47750097,21286.0,21285.0,0.001]
[1673995001426,0.47750097,21286.0,21285.0,0.470814]
[1673995001674,0.47150097,21286.0,21285.0,0.778314]
[1673995002900,0.47750097,21286.0,21285.0,1.57011]
[1673995003182,0.47763343,21286.0,21285.0,1.57011]
[1673995003453,0.47750097,21286.0,21285.0,1.57011]
[1673995003701,0.47750097,21286.0,21285.0,1.249128]
[1673995004956,0.47750097,21286.0,21285.0,1.57011]
[1673995005455,0.47763343,21286.0,21285.0,1.57011]
[1673995005703,0.47750097,21286.0,21285.0,1.57011]
[1673995006483,0.47763343,21286.0,21285.0,0.0095]
[1673995007222,0.47750097,21286.0,21285.0,0.3095]
[1673995007736,0.47750097,21286.0,21285.0,0.779314]
[1673995008234,0.47750097,21286.0,21285.0,1.100296]
[1673995008501,0.47750097,21286.0,21285.0,0.83188522]
[1673995008744,0.47750097,21286.0,21285.0,0.469814]
[1673995009013,0.006,21286.0,21285.0,1.26061]
[1673995010078,0.006,21286.0,21285.0,1.37283901]
[1673995010391,0.006,21286.0,21285.0,1.92182961]
[1673995010590,0.006,21286.0,21285.0,1.93032961]
[1673995010804,0.006,21286.0,21285.0,2.28800541]
[1673995011071,0.006,21286.0,21285.0,2.44775257]
[1673995011857,0.04797948,21289.0,21285.0,2.44775257]
[1673995012109,0.04797948,21289.0,21286.0,0.72200576]
[1673995012374,0.04797948,21289.0,21287.0,2.195028]
[1673995012623,0.00408394,21292.0,21288.0,0.409649]
[1673995012902,0.00408394,21292.0,21289.0,1.725061]
[1673995013133,0.00408394,21292.0,21290.0,0.409634]
[1673995013383,0.00408394,21292.0,21291.0,0.939364]
[1673995013637,0.00408394,21292.0,21291.0,1.247864]
[1673995014409,0.42109366,21292.0,21291.0,0.947864]
[1673995014913,0.47809366,21292.0,21291.0,0.481182]
[1673995015962,0.47809366,21292.0,21291.0,0.0115]
[1673995016498,0.74219666,21292.0,21291.0,0.0085]
[1673995016784,0.74219666,21292.0,21289.0,0.939421]
[1673995016785,0.86119666,21292.0,21290.0,0.0085]
[1673995017021,0.321103,21291.0,21290.0,0.0085]
[1673995017271,1.47942366,21292.0,21290.0,0.0085]
[1673995017530,1.36043866,21292.0,21289.0,0.0085]
[1673995017785,0.521103,21291.0,21289.0,0.0085]
[1673995018035,0.321103,21290.0,21288.0,0.0085]
[1673995018283,0.321103,21289.0,21288.0,0.0085]
[1673995018539,0.8112089,21290.0,21288.0,0.0085]
[1673995018793,0.469721,21290.0,21287.0,0.0085]
[1673995019020,0.321103,21289.0,21286.0,0.469772]
[1673995019271,0.19072595,21289.0,21286.0,0.469772]
[1673995019526,0.469727,21289.0,21286.0,0.469772]
[1673995020267,0.469727,21289.0,21287.0,0.0085]
[1673995020520,0.557727,21289.0,21287.0,0.0085]
[1673995021290,0.469727,21289.0,21287.0,0.0085]
[1673995021544,0.00013246,21288.0,21287.0,0.0085]
[1673995023070,0.08813246,21288.0,21287.0,0.0085]
[1673995023330,0.08813246,21288.0,21286.0,0.0085]
[1673995024125,0.00013246,21288.0,21286.0,0.0085]
[1673995024669,1.02763046,21288.0,21286.0,0.0085]
[1673995024921,1.27622647,21288.0,21285.0,0.0085]
[1673995025912,0.93963046,21288.0,21285.0,0.0085]
[1673995026212,1.02763046,21288.0,21285.0,0.0085]
[1673995026480,1.027498,21288.0,21285.0,0.3085]
[1673995027775,1.027498,21288.0,21285.0,0.0085]
[1673995029304,0.50304602,21287.0,21284.0,0.01788505]
[1673995029562,0.790895,21286.0,21284.0,0.01788505]
[1673995029820,0.321103,21285.0,21284.0,0.01788505]
[1673995030072,0.469792,21286.0,21284.0,0.01788505]
[1673995030322,0.939595,21286.0,21284.0,0.01788505]
[1673995030849,0.944595,21286.0,21284.0,0.02088505]
[1673995032124,0.939595,21286.0,21284.0,0.01788505]
[1673995032394,1.027595,21286.0,21284.0,0.01788505]
[1673995033979,1.2476379,21286.0,21284.0,0.01788505]
[1673995034232,1.5891418,21286.0,21284.0,0.01788505]
[1673995034496,1.3690989,21286.0,21284.0,0.01788505]
[1673995034751,1.027595,21286.0,21284.0,0.01788505]
[1673995035479,1.3690989,21286.0,21284.0,0.01788505]
[1673995035733,0.52450507,21285.0,21284.0,0.01788505]
[1673995035994,0.99431907,21285.0,21284.0,0.01788505]
[1673995036242,1.46413307,21285.0,21284.0,0.01788505]
[1673995037757,0.99431907,21285.0,21284.0,0.01788505]
[1673995038030,1.18772212,21285.0,21284.0,0.01788505]
[1673995038280,2.2146788,21285.0,21284.0,0.01788505]
[1673995038563,1.8731749,21285.0,21284.0,0.01788505]
[1673995038784,2.88260644,21285.0,21284.0,0.00788505]
[1673995039033,2.69188049,21285.0,21284.0,0.00788505]
[1673995039529,2.60388049,21285.0,21284.0,0.00788505]
[1673995039840,2.69488049,21285.0,21284.0,0.00788505]
[1673995040051,3.16898266,21285.0,21284.0,0.00788505]
[1673995040301,2.69488049,21285.0,21284.0,0.00788505]
[1673995040808,2.80388049,21285.0,21284.0,0.00788505]
[1673995041125,2.91584013,21285.0,21284.0,0.00788505]
[1673995041312,2.80388049,21285.0,21284.0,0.00788505]
[1673995041559,3.27798266,21285.0,21284.0,0.00788505]
[1673995042097,3.36898266,21285.0,21284.0,0.00788505]
[1673995042857,3.27798266,21285.0,21284.0,0.00788505]
[1673995043693,3.3899423,21285.0,21284.0,0.00788505]
[1673995043904,0.01180563,21283.0,21282.0,0.01583864]
[1673995044162,2.56118822,21283.0,21282.0,0.01583864]
[1673995045178,2.65218822,21283.0,21282.0,0.01574416]
[1673995045437,3.51435421,21283.0,21282.0,0.01574416]
[1673995045688,3.12308594,21283.0,21282.0,0.01574416]
[1673995046264,3.32308594,21283.0,21282.0,0.01574416]
[1673995046759,3.67958594,21283.0,21282.0,0.01574416]
[1673995047018,3.77058594,21283.0,21282.0,0.01574416]
[1673995047266,3.67958594,21283.0,21282.0,0.01574416]
[1673995047553,3.77058594,21283.0,21282.0,0.01574416]
[1673995047812,3.77058594,21283.0,21274.0,0.470036]
[1673995047813,0.02202737,21281.0,21267.0,0.01515982]
[1673995048072,0.6,21272.0,21264.0,0.5048682]
[1673995048343,0.6,21272.0,21262.0,0.10551518]
[1673995048344,0.47720169,21268.0,21262.0,0.10551518]
[1673995048615,0.47720169,21268.0,21253.0,0.28047947]
[1673995048616,6.26253422,21250.0,21249.0,0.22387033]
[1673995049118,6.25043044,21250.0,21249.0,1.38829816]
[1673995049120,6.44115639,21250.0,21249.0,1.255854]
[1673995049394,6.43115639,21250.0,21249.0,0.465594]
[1673995049656,6.40972093,21250.0,21249.0,0.465594]
[1673995049937,6.40972093,21250.0,21249.0,0.23529]
[1673995049938,6.21899498,21250.0,21249.0,0.23529]
[1673995050213,6.21799498,21250.0,21249.0,0.7059]
[1673995050491,6.20899498,21250.0,21249.0,0.91946468]
[1673995050741,6.20899498,21250.0,21249.0,0.48416468]
[1673995051012,6.39985339,21250.0,21249.0,0.48416468]
[1673995051269,6.08812744,21250.0,21249.0,0.01355468]
[1673995051820,6.07918744,21250.0,21249.0,0.01355468]
[1673995053218,6.40929044,21250.0,21249.0,0.01355468]
[1673995053470,6.40029044,21250.0,21249.0,0.01305468]
[1673995053727,6.40929044,21250.0,21249.0,0.01305468]
[1673995053985,6.40029044,21250.0,21249.0,0.01305468]
[1673995054272,6.44229044,21250.0,21249.0,0.01305468]
[1673995054541,6.44229044,21250.0,21239.0,0.47920585]
[1673995054542,0.00959532,21249.0,21239.0,0.47920585]
[1673995054817,0.520668,21247.0,21239.0,0.00839485]
[1673995055082,0.51182895,21246.0,21240.0,0.73275381]
[1673995055354,0.98903064,21245.0,21240.0,0.07359486]
[1673995055631,0.05,21243.0,21240.0,0.02656581]
[1673995055892,0.321103,21242.0,21240.0,0.00156581]
[1673995056156,0.05,21243.0,21240.0,0.00156581]
[1673995056417,0.321103,21242.0,21240.0,0.00156581]
[1673995056689,0.321103,21241.0,21240.0,0.00156581]
[1673995057169,0.059,21243.0,21240.0,0.00156581]
[1673995057686,0.39126572,21246.0,21240.0,0.00156581]
[1673995057687,0.64126572,21246.0,21240.0,0.00156581]
[1673995057958,0.009,21241.0,21240.0,0.01006581]
[1673995058231,0.009,21241.0,21240.0,1.80179735]
[1673995058491,0.009,21241.0,21240.0,2.4055334]
[1673995059011,0.00013,21244.0,21240.0,2.4055334]
[1673995059260,0.00013,21244.0,21242.0,0.55]
[1673995059589,0.00013,21244.0,21243.0,2.041986]
[1673995059777,0.04824582,21249.0,21243.0,2.32434505]
[1673995060076,0.04824582,21249.0,21247.0,0.23533]
[1673995060349,0.04824582,21249.0,21248.0,1.33220816]
[1673995060608,6.07899498,21250.0,21248.0,1.33220816]
[1673995060922,6.07899498,21250.0,21248.0,1.88220816]
[1673995061183,6.07899498,21250.0,21248.0,1.33220816]
[1673995061438,6.07899498,21250.0,21248.0,1.92923721]
[1673995061703,6.07899498,21250.0,21249.0,0.2]
[1673995061959,1.66700298,21250.0,21249.0,1.23025585]
[1673995062249,6e-05,21251.0,21250.0,0.2]
[1673995062506,6e-05,21251.0,21250.0,0.83720427]
[1673995062764,0.00200632,21259.0,21251.0,0.2]
[1673995063036,0.00200632,21259.0,21254.0,0.55]
[1673995063299,0.00200632,21259.0,21253.0,1.882048]
[1673995063300,0.00200632,21259.0,21256.0,0.23523]
[1673995063582,0.00200632,21259.0,21257.0,1.64483132]
[1673995063843,0.00200632,21259.0,21258.0,0.321307]
[1673995064369,0.00200632,21259.0,21253.0,0.470512]
[1673995064650,0.00200632,21259.0,21251.0,0.820554]
[1673995064651,0.19273227,21259.0,21255.0,0.470468]
[1673995065120,0.19273227,21259.0,21256.0,0.705664]
[1673995065121,0.00200632,21259.0,21256.0,0.705664]
[1673995065388,0.00200632,21259.0,21257.0,0.621307]
[1673995065639,0.00200632,21259.0,21258.0,0.58032]
[1673995065899,0.00200632,21259.0,21258.0,0.88203874]
[1673995066410,0.00200632,21259.0,21258.0,0.84006233]
[1673995066922,0.00200632,21259.0,21258.0,0.98081012]
[1673995067180,0.09543437,21263.0,21258.0,0.93378107]
[1673995067441,0.09543437,21263.0,21261.0,0.23517]
[1673995067695,0.05013246,21263.0,21262.0,0.369647]
[1673995067960,0.05,21263.0,21262.0,0.3085]
[1673995068210,0.05,21263.0,21262.0,0.39094416]
[1673995068487,0.000404,21264.0,21262.0,0.39094416]
[1673995068777,0.050404,21264.0,21263.0,1.261822]
[1673995068993,0.050404,21264.0,21263.0,1.570322]
[1673995069237,0.050274,21264.0,21263.0,1.5704079]
[1673995069506,0.050274,21264.0,21263.0,1.2491]
[1673995069769,0.050274,21264.0,21263.0,1.3431]
[1673995070061,0.050274,21264.0,21263.0,1.664322]
[1673995071060,0.050334,21264.0,21263.0,1.664322]
[1673995071589,0.050334,21264.0,21263.0,1.6644079]
[1673995072128,0.050334,21264.0,21263.0,1.8995379]
[1673995073146,1.050334,21264.0,21263.0,1.8995379]
[1673995073397,1.050334,21264.0,21263.0,1.63505597]
[1673995073908,1.050334,21264.0,21263.0,1.54105597]
[1673995074188,1.050334,21264.0,21263.0,1.63305597]
[1673995075245,1.050274,21264.0,21263.0,1.63305597]
[1673995078283,1.050274,21264.0,21263.0,2.01135597]
[1673995079815,1.05040646,21264.0,21263.0,1.56814007]
[1673995080424,1.050274,21264.0,21263.0,1.56814007]
[1673995080602,1.050274,21264.0,21263.0,1.24691807]
[1673995081110,1.050274,21264.0,21263.0,1.15491807]
[1673995081364,1.050274,21264.0,21263.0,1.24691807]
[1673995081625,1.050274,21264.0,21263.0,1.68072671]
[1673995081848,1.050274,21264.0,21263.0,1.77272671]
[1673995082142,1.050274,21264.0,21263.0,1.68072671]
[1673995082393,1.050274,21264.0,21263.0,1.77272671]
[1673995082654,1.050274,21264.0,21263.0,1.68072671]
[1673995082908,1.05040646,21264.0,21263.0,1.68072671]
[1673995083165,1.050274,21264.0,21263.0,1.68072671]
[1673995083683,1.050274,21264.0,21263.0,1.77272671]
[1673995083940,1.050274,21264.0,21263.0,1.68072671]
[1673995084238,1.050274,21264.0,21263.0,1.47272671]
[1673995084489,1.050274,21264.0,21263.0,1.38072671]
[1673995084739,1.050274,21264.0,21263.0,1.47272671]
[1673995084991,1.050274,21264.0,21263.0,1.38072671]
[1673995085245,1.050274,21264.0,21263.0,0.91042671]
[1673995085754,1.050274,21264.0,21263.0,1.00242671]
[1673995086552,1.050274,21264.0,21263.0,0.91042671]
[1673995086802,1.050274,21264.0,21263.0,1.20192671]
[1673995087056,1.050274,21264.0,21262.0,0.470317]
[1673995087830,1.050274,21264.0,21263.0,0.092]
[1673995088169,1.93007478,21264.0,21263.0,1.20241411]
[1673995088369,2.25129678,21264.0,21263.0,1.11041412]
[1673995088627,2.72157478,21264.0,21262.0,0.093]
[1673995088881,0.321222,21263.0,21262.0,0.093]
[1673995089140,0.791522,21263.0,21262.0,0.093]
[1673995089393,0.991522,21263.0,21259.0,0.470384]
[1673995089655,0.321222,21262.0,21259.0,0.470384]
[1673995089924,0.05,21260.0,21259.0,0.470384]
[1673995090179,0.05,21260.0,21259.0,0.940772]
[1673995090995,0.05,21260.0,21259.0,1.033772]
[1673995091256,0.05,21260.0,21259.0,1.333772]
[1673995091513,0.05,21260.0,21259.0,1.342272]
[1673995091770,0.05,21260.0,21259.0,1.042272]
[1673995092093,0.371222,21260.0,21259.0,0.1015]
[1673995092314,0.371222,21260.0,21259.0,0.0965]
[1673995092572,0.05,21260.0,21259.0,0.0965]
[1673995092827,0.05,21260.0,21259.0,0.478889]
[1673995093076,0.05,21260.0,21259.0,1.038278]
[1673995093334,0.05,21260.0,21259.0,0.949278]
[1673995093591,0.05,21260.0,21259.0,1.037278]
[1673995093859,0.05,21260.0,21259.0,0.949278]
[1673995094124,0.05013246,21260.0,21259.0,0.567889]
[1673995094379,0.37135446,21260.0,21259.0,0.0975]
[1673995094667,0.37135446,21260.0,21259.0,0.0085]
[1673995094911,0.37135446,21260.0,21258.0,0.0085]